{"text_format":"1","workbook":"xlsx","n_sheets":1,"sheets":["Hoja1"],"not_rendered":{"charts":0,"images":0,"macros":0,"external_links":0,"defined_names":0,"comments":0,"pivot_tables":0},"unopened":[],"bounds":{"document_bytes":16777216,"sheet_cells":100000,"rows_first":2000,"rows_last":500,"rows_between":2000,"halvings":0,"cell_chars":16384,"cell_head_chars":4096},"cells_cut":0,"cells_raw":0,"read":"whole","date_system":"1900"}

{"sheet":"Hoja1","index":0,"n_rows":53,"n_cols":16,"rows_kept":53,"cut":false,"hidden":false,"merged":[]}
[null,null,null,"EVALUACION DE ESTUDIANTES"]
[null,null,"1RA PREMISA","p","si el estudiante tiene 3 puntos en componente autónomo"]
[null,null,"2da PREMISA","q","aprueba el componente "]
[]
[null,null,null,null,3,null,3.5,null,3.5]
[]
[null,null,null,"Nombre","APRENDIZAJE AUTONOMO 3 PUNTOS","CUMPLIMIENTO","EXPERIMENTACIÓN 3.5 PUNTOS","CUMPLIMIENTO","APRENDIZAJE CON EL DOCENTE 3.5","CUMPLIMIENTO",null,null,null,"maria es pequeña","maria no es pequeña",{"$f":"N7=O7","v":false}]
[null,null,null,"EDISON PAUL",2.9,{"$f":"E8=E5","v":false},3.3250000000000002,null,3.2130000000000001,{"$f":"I8=I5","v":false},{"$f":"IF((E8=E5)+(G8=G5)+(I8=I5),\"APRUEBA\",\"REPRUEBA\")","v":"REPRUEBA"}]
[null,null,null,"HENRY ALEJANDRO",3,{"$f":"E9=E6","v":false},3.5,null,3.3250000000000002,null,{"$f":"IF((E9=E6)+(G9=G6)+(I9=I6),\"APRUEBA\",\"REPRUEBA\")","v":"REPRUEBA"}]
[null,null,null,"VIEIRA CHRISTIAN",2.8,false,3.2666666666666662,null,2.8455000000000008,null,"REPRUEBA"]
[null,null,null,"JAIRO ARIEL",3,false,3.5,null,3.2374999999999998,null,"REPRUEBA"]
[null,null,null,"ODALIS ARACELI",3,true,3.5,null,2.6705000000000001,null,"APRUEBA"]
[null,null,null,"GONZALO JOSE",2.9,false,3.5,null,3.3250000000000002,null,"REPRUEBA"]
[null,null,null,"SARANELY CAROLINA",2.9,false,3.2666666666666662,null,3.472,null,"REPRUEBA"]
[null,null,null,"DANIEL ALEJANDRO",2.9,false,2.3333333333333335,null,3.5,null,"REPRUEBA"]
[null,null,null,"YOSTIN SANTIAGO",2.9,true,3.3250000000000002,null,3.1779999999999999,null,"APRUEBA"]
[null,null,null,"SCARLET BELEN",2.9,true,3.2666666666666662,null,3.3250000000000002,null,"APRUEBA"]
[null,null,null,"JUAN CARLOS",2.9,true,3.2666666666666662,null,3.5,null,"APRUEBA"]
[null,null,null,"SHIRLEY PAOLA",3,false,3.5,null,3.5,null,"REPRUEBA"]
[null,null,null,"JHON JAIRO",2.9,true,3.5,null,3.2655000000000003,null,"APRUEBA"]
[null,null,null,"JAIR ALEXANDER",2.9,true,3.3250000000000002,null,3.2969999999999997,null,"APRUEBA"]
[null,null,null,"ZULEIMA ABIGAIL",2.9,false,3.5,null,3.5,null,"APRUEBA"]
[null,null,null,"JOSUE MATEO",1.9,false,3.5,null,3.4405000000000001,null,"APRUEBA"]
[null,null,null,"MALLERLY ISABEL",3,false,2.3333333333333335,null,3.2655000000000003,null,"REPRUEBA"]
[null,null,null,"EMILY CRISTINA",2.9,true,3.5,null,2.9155000000000002,null,"APRUEBA"]
[null,null,null,"GABRIEL GERMAN",2.8,false,3.3250000000000002,null,3.2094999999999998,null,"REPRUEBA"]
[null,null,null,"ROSARIO MARISOL",3,true,3.5,null,3.0625,null,"APRUEBA"]
[null,null,null,"DANNY SEBASTIAN",3,false,2.3333333333333335,null,3.15,null,"REPRUEBA"]
[null,null,null,"JUSTO JESUS",3,false,3.3833333333333337,null,3.3250000000000002,null,"REPRUEBA"]
[null,null,null,"SAMUEL SEBASTIAN",1.9,false,3.5,null,3.472,null,"APRUEBA"]
[null,null,null,"ALEXANDER ISMAEL",2.9,false,3.3250000000000002,null,3.4405000000000001,null,"REPRUEBA"]
[null,null,null,"DANY ALEXANDER",3,true,3.5,null,3.1955000000000009,null,"APRUEBA"]
[null,null,null,"MARIUXI VIVIANA",1,false,3.5,null,3.3250000000000002,null,"APRUEBA"]
[null,null,null,"SAMUEL NICOLAS",3,false,3.5,null,2.9470000000000001,null,"REPRUEBA"]
[null,null,null,"RUTH ELIZABETH",3,true,3.5,null,3.5,null,"APRUEBA"]
[null,null,null,"ANTHONY JAVIER",3,false,3.5,null,3.5,null,"APRUEBA"]
[null,null,null,"KEVIN FERNANDO",2.9,false,3.5,null,3.3250000000000002,null,"APRUEBA"]
[null,null,null,"EDISON GABRIEL",2.95,false,3.5,null,2.9750000000000001,null,"APRUEBA"]
[null,null,null,"DIEGO JAHIR",2.85,false,3.5,null,3.4125000000000001,null,"APRUEBA"]
[null,null,null,"LIZETH KATHERYNE",3,false,3.5,null,3.472,null,"APRUEBA"]
[null,null,null,"EDGAR JONATHAN",3,false,2.3333333333333335,null,3.0905,null,"REPRUEBA"]
[null,null,null,"EDGAR NAIM",3,false,3.5,null,3.5,null,"APRUEBA"]
[null,null,null,"MISHEL ELIZABETH",3,true,3.5,null,3.01,null,"APRUEBA"]
[null,null,null,"JENNYFER JOHANNA",2.9,false,3.2666666666666662,null,3.3250000000000002,null,"REPRUEBA"]
[null,null,null,"EDISON GONZALO",3,true,2.3333333333333335,null,3.157,null,"APRUEBA"]
[null,null,null,"ISMAEL CELIANO",2.8,false,3.3250000000000002,null,3.4405000000000001,null,"REPRUEBA"]
[null,null,null,"ANGEL EDUARDO",2.9,true,3.5,null,3.1779999999999999,null,"APRUEBA"]
[null,null,null,"NURIA DOMÉNICA",3,true,3.5,null,3.3250000000000002,null,"APRUEBA"]
[null,null,null,"JHOSSET JOSUE",1.9,false,3.2666666666666662,null,3.3705000000000007,null,"REPRUEBA"]
[null,null,null,"ALEX JHEFFERSON",3,false,3.5,null,3.5,null,"APRUEBA"]
[null,null,null,"ESTHER JANNETH",2.9,false,2.3333333333333335,null,3.5,null,"REPRUEBA"]
[null,null,null,"PAMELA ARACELY",3,false,3.5,null,3.15,null,"REPRUEBA"]
[null,null,null,"BRANDO JOEL",3,{"$f":"E53=E50","v":true},3.5,null,3.5,null,"APRUEBA"]